[Event "*** SCC Grand Prix: Titled Tuesday Blitz"]
[Site "Chess.com"]
[Date "2020.07.21"]
[Round "5"]
[White "Mazetovic"]
[Black "pastouche06"]
[Result "1-0"]
[WhiteElo "2665"]
[BlackElo "2523"]
[TimeControl "180+1"]
[EndTime "10:55:39 PDT"]
[Termination "Mazetovic won on time"]

1. e4 {[%clk 0:03:00.9]} 1... c6 {[%clk 0:02:59.7]} 2. d4 {[%clk 0:02:55.7]}
2... d5 {[%clk 0:02:57.4]} 3. exd5 {[%clk 0:02:55.5]} 3... cxd5 {[%clk
0:02:57.2]} 4. c3 {[%clk 0:02:55.7]} 4... Nc6 {[%clk 0:02:54.9]} 5. Bf4 {[%clk
0:02:54.3]} 5... Nf6 {[%clk 0:02:53.1]} 6. Nd2 {[%clk 0:02:51]} 6... Bf5 {[%clk
0:02:47.2]} 7. Ngf3 {[%clk 0:02:41.6]} 7... e6 {[%clk 0:02:37.4]} 8. Ne5 {[%clk
0:02:27.4]} 8... Nxe5 {[%clk 0:02:20.1]} 9. Bxe5 {[%clk 0:02:14.1]} 9... Nd7
{[%clk 0:02:19.3]} 10. Bg3 {[%clk 0:02:13]} 10... Be7 {[%clk 0:02:16]} 11. Nf3
{[%clk 0:02:11.7]} 11... O-O {[%clk 0:02:15.3]} 12. Bd3 {[%clk 0:02:07]} 12...
Bxd3 {[%clk 0:02:05.8]} 13. Qxd3 {[%clk 0:02:06.8]} 13... Nf6 {[%clk 0:02:02.5]}
14. Ne5 {[%clk 0:01:56.3]} 14... Ne4 {[%clk 0:01:49.4]} 15. f3 {[%clk
0:01:55.9]} 15... Nd6 {[%clk 0:01:47.3]} 16. O-O {[%clk 0:01:52]} 16... Bh4
{[%clk 0:01:31.9]} 17. Rfe1 {[%clk 0:01:50]} 17... Bxg3 {[%clk 0:01:30.5]} 18.
hxg3 {[%clk 0:01:49.9]} 18... b5 {[%clk 0:01:03.6]} 19. Kf2 {[%clk 0:01:47.2]}
19... a5 {[%clk 0:00:59.3]} 20. Rh1 {[%clk 0:01:46.4]} 20... h6 {[%clk 0:00:58]}
21. Rh5 {[%clk 0:01:28.7]} 21... b4 {[%clk 0:00:39.9]} 22. g4 {[%clk 0:01:28.3]}
22... bxc3 {[%clk 0:00:32.3]} 23. bxc3 {[%clk 0:01:27.8]} 23... Rb8 {[%clk
0:00:19.3]} 24. g5 {[%clk 0:01:27.7]} 24... Rb2+ {[%clk 0:00:17.4]} 25. Kg1
{[%clk 0:01:27.3]} 25... Nf5 {[%clk 0:00:09]} 26. gxh6 {[%clk 0:01:17.9]} 26...
g6 {[%clk 0:00:08.2]} 27. Rh3 {[%clk 0:01:03.4]} 27... Qg5 {[%clk 0:00:07.6]}
28. Ng4 {[%clk 0:00:59.3]} 28... Rfb8 {[%clk 0:00:05.3]} 29. Re1 {[%clk
0:00:55.6]} 29... Rd2 {[%clk 0:00:04.4]} 30. Qa6 {[%clk 0:00:40.5]} 30... Rbb2
{[%clk 0:00:04.2]} 31. Rh2 {[%clk 0:00:39.9]} 31... Kh7 {[%clk 0:00:03.3]} 32.
Qa7 {[%clk 0:00:38.4]} 32... Qe7 {[%clk 0:00:03.2]} 33. Qxe7 {[%clk 0:00:36.5]}
33... Nxe7 {[%clk 0:00:04.1]} 34. Nf6+ {[%clk 0:00:36.8]} 34... Kh8 {[%clk
0:00:04.4]} 35. Ng4 {[%clk 0:00:28.1]} 35... Rxa2 {[%clk 0:00:01.3]} 36. Ne5
{[%clk 0:00:28]} 1-0

[Event "*** SCC Grand Prix: Titled Tuesday Blitz"]
[Site "Chess.com"]
[Date "2020.07.21"]
[Round "5"]
[White "Volodar_Murzin"]
[Black "mamey78"]
[Result "0-1"]
[WhiteElo "2704"]
[BlackElo "2521"]
[TimeControl "180+1"]
[EndTime "10:55:40 PDT"]
[Termination "mamey78 won on time"]

1. e4 {[%clk 0:03:00.9]} 1... e5 {[%clk 0:02:56.3]} 2. Nf3 {[%clk 0:03:00.7]}
2... Nc6 {[%clk 0:02:56]} 3. Bb5 {[%clk 0:03:00.9]} 3... a6 {[%clk 0:02:55.8]}
4. Ba4 {[%clk 0:03:00.7]} 4... Nf6 {[%clk 0:02:55.9]} 5. O-O {[%clk 0:02:59.5]}
5... b5 {[%clk 0:02:56.2]} 6. Bb3 {[%clk 0:02:58.1]} 6... Be7 {[%clk 0:02:55.9]}
7. d3 {[%clk 0:02:54.4]} 7... O-O {[%clk 0:02:55.3]} 8. Nc3 {[%clk 0:02:53.3]}
8... Bb7 {[%clk 0:02:48.8]} 9. a3 {[%clk 0:02:51.3]} 9... d6 {[%clk 0:02:44.6]}
10. h3 {[%clk 0:02:41.3]} 10... Nb8 {[%clk 0:02:29.3]} 11. Bg5 {[%clk
0:02:30.7]} 11... Nbd7 {[%clk 0:02:27.7]} 12. Ne2 {[%clk 0:02:28.5]} 12... h6
{[%clk 0:02:24.8]} 13. Be3 {[%clk 0:02:24.3]} 13... d5 {[%clk 0:02:19.5]} 14.
exd5 {[%clk 0:02:10.1]} 14... Nxd5 {[%clk 0:02:20.4]} 15. Ng3 {[%clk 0:02:08.7]}
15... f5 {[%clk 0:01:39.2]} 16. Bd2 {[%clk 0:01:54.2]} 16... Kh8 {[%clk
0:01:26.7]} 17. Re1 {[%clk 0:01:52.4]} 17... Bd6 {[%clk 0:01:21.1]} 18. Ba2
{[%clk 0:01:33.3]} 18... Qf6 {[%clk 0:01:14.8]} 19. Rc1 {[%clk 0:01:15.5]} 19...
Rae8 {[%clk 0:01:12.3]} 20. c3 {[%clk 0:00:57.9]} 20... c5 {[%clk 0:01:03.8]}
21. Bb1 {[%clk 0:00:51.6]} 21... Nf4 {[%clk 0:00:57.2]} 22. b4 {[%clk
0:00:12.3]} 22... g5 {[%clk 0:00:35]} 23. bxc5 {[%clk 0:00:11]} 23... Nxc5
{[%clk 0:00:33.8]} 24. d4 {[%clk 0:00:05.8]} 24... exd4 {[%clk 0:00:29.9]} 25.
Nxf5 {[%clk 0:00:04.7]} 25... Ncd3 {[%clk 0:00:25.8]} 26. Rxe8 {[%clk
0:00:04.1]} 26... Rxe8 {[%clk 0:00:24.9]} 27. Bxf4 {[%clk 0:00:04.6]} 27... Nxf4
{[%clk 0:00:20.1]} 28. N3xd4 {[%clk 0:00:03.2]} 28... Bc5 {[%clk 0:00:16.8]} 29.
Qg4 {[%clk 0:00:03.1]} 29... Bxg2 {[%clk 0:00:12.5]} 30. h4 {[%clk 0:00:02.3]}
30... Bh3 {[%clk 0:00:11.6]} 31. Qf3 {[%clk 0:00:01.8]} 31... Bxf5 {[%clk
0:00:10.6]} 32. Nxf5 {[%clk 0:00:02.4]} 32... Ne2+ {[%clk 0:00:10.6]} 33. Kh1
{[%clk 0:00:03]} 33... Nxc1 {[%clk 0:00:11]} 34. Qh5 {[%clk 0:00:03.1]} 34...
Qc6+ {[%clk 0:00:07.5]} 35. Kh2 {[%clk 0:00:02.5]} 35... Bd6+ {[%clk 0:00:05.5]}
36. Kh3 {[%clk 0:00:01.2]} 36... Qh1+ {[%clk 0:00:04.9]} 37. Kg4 {[%clk
0:00:01.7]} 37... Re4+ {[%clk 0:00:03.9]} 0-1

[Event "*** SCC Grand Prix: Titled Tuesday Blitz"]
[Site "Chess.com"]
[Date "2020.07.21"]
[Round "5"]
[White "OrtizAnahi2001"]
[Black "chesstrainer2042"]
[Result "0-1"]
[WhiteElo "2278"]
[BlackElo "2464"]
[TimeControl "180+1"]
[EndTime "10:55:42 PDT"]
[Termination "chesstrainer2042 won by resignation"]

1. d4 {[%clk 0:03:00.9]} 1... Nf6 {[%clk 0:02:58.9]} 2. c4 {[%clk 0:02:56.5]}
2... e6 {[%clk 0:02:59]} 3. Nc3 {[%clk 0:02:54.4]} 3... Bb4 {[%clk 0:02:57.8]}
4. e3 {[%clk 0:02:53.3]} 4... O-O {[%clk 0:02:55.3]} 5. Bd3 {[%clk 0:02:52.7]}
5... c5 {[%clk 0:02:54.7]} 6. Ne2 {[%clk 0:02:50.4]} 6... d5 {[%clk 0:02:53]} 7.
O-O {[%clk 0:02:49.6]} 7... cxd4 {[%clk 0:02:40.7]} 8. exd4 {[%clk 0:02:47.4]}
8... dxc4 {[%clk 0:02:40.9]} 9. Bxc4 {[%clk 0:02:47.6]} 9... b6 {[%clk
0:02:41.5]} 10. a3 {[%clk 0:02:45.2]} 10... Bxc3 {[%clk 0:02:39.1]} 11. bxc3
{[%clk 0:02:44]} 11... Bb7 {[%clk 0:02:38.9]} 12. Bd3 {[%clk 0:02:42.4]} 12...
Nbd7 {[%clk 0:02:37.7]} 13. Bg5 {[%clk 0:02:40.4]} 13... Qc7 {[%clk 0:02:34]}
14. Rc1 {[%clk 0:02:36.8]} 14... Be4 {[%clk 0:02:23.5]} 15. Ng3 {[%clk
0:02:10.8]} 15... Bxd3 {[%clk 0:02:20.5]} 16. Qxd3 {[%clk 0:02:08.2]} 16... h6
{[%clk 0:02:18.4]} 17. Bd2 {[%clk 0:02:05.7]} 17... Rfd8 {[%clk 0:02:17]} 18.
Qc2 {[%clk 0:02:04.2]} 18... b5 {[%clk 0:02:15.3]} 19. Rfe1 {[%clk 0:02:03.9]}
19... Nb6 {[%clk 0:02:13.2]} 20. Ne2 {[%clk 0:01:56.9]} 20... Nc4 {[%clk
0:02:04.7]} 21. Bf4 {[%clk 0:01:56.8]} 21... Qc6 {[%clk 0:02:02.1]} 22. Qb3
{[%clk 0:01:47.6]} 22... Nd5 {[%clk 0:01:57.4]} 23. Bg3 {[%clk 0:01:46.1]} 23...
Rac8 {[%clk 0:01:52.8]} 24. Ra1 {[%clk 0:01:42.3]} 24... Na5 {[%clk 0:01:46.7]}
25. Qb1 {[%clk 0:01:38.9]} 25... Nxc3 {[%clk 0:01:44.2]} 26. Nxc3 {[%clk
0:01:39]} 26... Qxc3 {[%clk 0:01:44.4]} 27. Qxb5 {[%clk 0:01:39.2]} 27... Nb3
{[%clk 0:01:44.4]} 28. Rad1 {[%clk 0:01:23.1]} 28... Nxd4 {[%clk 0:01:43.3]} 29.
Qe5 {[%clk 0:01:20.5]} 29... Rd5 {[%clk 0:01:31.7]} 30. Qe4 {[%clk 0:01:13.2]}
30... Rcd8 {[%clk 0:01:29.5]} 31. Rb1 {[%clk 0:01:11]} 31... Nf5 {[%clk
0:01:12.7]} 32. Be5 {[%clk 0:01:07.8]} 32... Qxa3 {[%clk 0:01:07]} 33. Bb2
{[%clk 0:01:07.6]} 33... Qd3 {[%clk 0:01:04.6]} 34. Qg4 {[%clk 0:01:05.4]} 34...
Kh7 {[%clk 0:00:43.5]} 35. h3 {[%clk 0:01:02.2]} 35... a5 {[%clk 0:00:41.4]} 36.
Ra1 {[%clk 0:00:57.7]} 36... Qc2 {[%clk 0:00:39.1]} 37. Ba3 {[%clk 0:00:52.1]}
37... Rd4 {[%clk 0:00:37.6]} 38. Qf3 {[%clk 0:00:51]} 38... Rd3 {[%clk
0:00:35.3]} 39. Qb7 {[%clk 0:00:49.7]} 39... R8d7 {[%clk 0:00:35.3]} 40. Qb6
{[%clk 0:00:48.6]} 40... a4 {[%clk 0:00:33.2]} 41. Qb5 {[%clk 0:00:47.1]} 41...
Rd2 {[%clk 0:00:31.8]} 42. Bc5 {[%clk 0:00:44.2]} 42... R7d5 {[%clk 0:00:30.8]}
43. Rec1 {[%clk 0:00:42.8]} 43... Qe4 {[%clk 0:00:30]} 44. Rxa4 {[%clk
0:00:37.5]} 44... Rd1+ {[%clk 0:00:29.7]} 45. Rxd1 {[%clk 0:00:32.6]} 45...
Rxd1+ {[%clk 0:00:29.6]} 46. Kh2 {[%clk 0:00:33]} 46... Qe5+ {[%clk 0:00:28.4]}
47. f4 {[%clk 0:00:33.2]} 47... Qe1 {[%clk 0:00:27.8]} 0-1

[Event "*** SCC Grand Prix: Titled Tuesday Blitz"]
[Site "Chess.com"]
[Date "2020.07.21"]
[Round "5"]
[White "Korchmar_Vasiliy"]
[Black "GadimbayliA"]
[Result "0-1"]
[WhiteElo "2629"]
[BlackElo "2862"]
[TimeControl "180+1"]
[EndTime "10:55:43 PDT"]
[Termination "GadimbayliA won on time"]

1. d4 {[%clk 0:03:00.9]} 1... d5 {[%clk 0:02:54.5]} 2. Nf3 {[%clk 0:03:01]} 2...
Nc6 {[%clk 0:02:54.1]} 3. Bf4 {[%clk 0:02:57.6]} 3... Nf6 {[%clk 0:02:53.8]} 4.
e3 {[%clk 0:02:57.3]} 4... Nh5 {[%clk 0:02:53.4]} 5. Bg5 {[%clk 0:02:49.8]} 5...
h6 {[%clk 0:02:52.9]} 6. Bh4 {[%clk 0:02:49.7]} 6... g5 {[%clk 0:02:52.1]} 7.
Bg3 {[%clk 0:02:50.2]} 7... Nxg3 {[%clk 0:02:51.4]} 8. hxg3 {[%clk 0:02:49.8]}
8... g4 {[%clk 0:02:52.3]} 9. Nh4 {[%clk 0:02:43.5]} 9... e5 {[%clk 0:02:51.9]}
10. Bb5 {[%clk 0:02:36.5]} 10... Bg7 {[%clk 0:02:51.6]} 11. c3 {[%clk
0:02:09.5]} 11... Qd6 {[%clk 0:02:43.9]} 12. Nd2 {[%clk 0:02:03.7]} 12... Bd7
{[%clk 0:02:40.3]} 13. Nb3 {[%clk 0:01:59.2]} 13... O-O {[%clk 0:02:29.6]} 14.
Nc5 {[%clk 0:01:57.7]} 14... Bc8 {[%clk 0:02:29.5]} 15. Qa4 {[%clk 0:01:46.2]}
15... Ne7 {[%clk 0:02:26.8]} 16. Bd7 {[%clk 0:01:44.6]} 16... b6 {[%clk
0:02:16.2]} 17. Bxc8 {[%clk 0:01:44.2]} 17... Rfxc8 {[%clk 0:02:12.6]} 18. Nd3
{[%clk 0:01:41.4]} 18... e4 {[%clk 0:02:06.4]} 19. Nf4 {[%clk 0:01:41.2]} 19...
c5 {[%clk 0:02:06]} 20. dxc5 {[%clk 0:01:35.6]} 20... bxc5 {[%clk 0:02:06.9]}
21. Rd1 {[%clk 0:01:30.8]} 21... Rab8 {[%clk 0:01:59.7]} 22. O-O {[%clk
0:01:07.5]} 22... d4 {[%clk 0:01:34.2]} 23. cxd4 {[%clk 0:01:02.6]} 23... cxd4
{[%clk 0:01:29]} 24. exd4 {[%clk 0:01:02.4]} 24... Rxb2 {[%clk 0:01:27]} 25.
Qxa7 {[%clk 0:01:02.3]} 25... Rd8 {[%clk 0:01:22.7]} 26. a4 {[%clk 0:00:56.9]}
26... Nc6 {[%clk 0:01:18.7]} 27. Qc5 {[%clk 0:00:44.4]} 27... Nxd4 {[%clk
0:01:18.7]} 28. Qh5 {[%clk 0:00:38.1]} 28... Qf6 {[%clk 0:00:51.7]} 29. Qxg4
{[%clk 0:00:30]} 29... Qg5 {[%clk 0:00:43.3]} 30. Qh3 {[%clk 0:00:30.2]} 30...
Ra2 {[%clk 0:00:41.1]} 31. Nf5 {[%clk 0:00:25.3]} 31... Rxa4 {[%clk 0:00:37.1]}
32. Nxg7 {[%clk 0:00:18]} 32... Kxg7 {[%clk 0:00:33.5]} 33. Rfe1 {[%clk
0:00:17.4]} 33... Kh7 {[%clk 0:00:28.1]} 34. Kh1 {[%clk 0:00:13.1]} 34... Qe5
{[%clk 0:00:26.1]} 35. Nh5 {[%clk 0:00:10.1]} 35... Rd6 {[%clk 0:00:23]} 36. Qh4
{[%clk 0:00:08.6]} 36... Nf5 {[%clk 0:00:20.2]} 37. Qg4 {[%clk 0:00:04.6]} 37...
Rg6 {[%clk 0:00:19.7]} 38. Qh3 {[%clk 0:00:02.8]} 38... e3 {[%clk 0:00:18.4]}
39. fxe3 {[%clk 0:00:02.2]} 39... Nxe3 {[%clk 0:00:16]} 40. Rd3 {[%clk
0:00:01.5]} 40... Ra1 {[%clk 0:00:13.5]} 0-1

[Event "*** SCC Grand Prix: Titled Tuesday Blitz"]
[Site "Chess.com"]
[Date "2020.07.21"]
[Round "5"]
[White "Izoria123"]
[Black "crackcubano"]
[Result "0-1"]
[WhiteElo "2877"]
[BlackElo "2649"]
[TimeControl "180+1"]
[EndTime "10:55:46 PDT"]
[Termination "crackcubano won on time"]

1. Nf3 {[%clk 0:03:00.9]} 1... c5 {[%clk 0:02:59]} 2. e4 {[%clk 0:02:58]} 2...
d6 {[%clk 0:02:58.2]} 3. Nc3 {[%clk 0:02:53.2]} 3... a6 {[%clk 0:02:57.5]} 4. g3
{[%clk 0:02:50.2]} 4... g6 {[%clk 0:02:56.3]} 5. Bg2 {[%clk 0:02:48.9]} 5... Bg7
{[%clk 0:02:56.1]} 6. d4 {[%clk 0:02:48.6]} 6... cxd4 {[%clk 0:02:54.5]} 7. Nxd4
{[%clk 0:02:49]} 7... Nf6 {[%clk 0:02:54.7]} 8. O-O {[%clk 0:02:47.2]} 8... O-O
{[%clk 0:02:53.9]} 9. h3 {[%clk 0:02:46.4]} 9... Qc7 {[%clk 0:02:49]} 10. a4
{[%clk 0:02:38.1]} 10... Nc6 {[%clk 0:02:46.3]} 11. Be3 {[%clk 0:02:35.3]} 11...
e6 {[%clk 0:02:37]} 12. Qd2 {[%clk 0:02:15.3]} 12... Na5 {[%clk 0:02:26.4]} 13.
b3 {[%clk 0:02:15]} 13... Nd7 {[%clk 0:02:16.4]} 14. Nde2 {[%clk 0:02:08]} 14...
b6 {[%clk 0:02:02.6]} 15. Rad1 {[%clk 0:02:06.1]} 15... Nb7 {[%clk 0:02:01.3]}
16. Bh6 {[%clk 0:02:00.9]} 16... Rb8 {[%clk 0:01:41]} 17. Bxg7 {[%clk 0:01:57]}
17... Kxg7 {[%clk 0:01:41.9]} 18. Qd4+ {[%clk 0:01:56.5]} 18... e5 {[%clk
0:01:41.2]} 19. Qe3 {[%clk 0:01:55.2]} 19... Nf6 {[%clk 0:01:37.1]} 20. Rd3
{[%clk 0:01:51.1]} 20... Nc5 {[%clk 0:01:36.7]} 21. Rd2 {[%clk 0:01:50.2]} 21...
Bb7 {[%clk 0:01:36.4]} 22. Rfd1 {[%clk 0:01:48.6]} 22... Rbd8 {[%clk 0:01:31.6]}
23. g4 {[%clk 0:01:46.6]} 23... Rfe8 {[%clk 0:01:28.8]} 24. Nd5 {[%clk 0:01:03]}
24... Bxd5 {[%clk 0:01:27.2]} 25. exd5 {[%clk 0:01:03.9]} 25... h5 {[%clk
0:01:21.6]} 26. g5 {[%clk 0:00:56.8]} 26... Nfd7 {[%clk 0:01:19.7]} 27. h4
{[%clk 0:00:51.1]} 27... f5 {[%clk 0:01:14.2]} 28. b4 {[%clk 0:00:36.4]} 28...
Nxa4 {[%clk 0:01:08.5]} 29. c4 {[%clk 0:00:29.8]} 29... Qxc4 {[%clk 0:01:02]}
30. Rc1 {[%clk 0:00:30.3]} 30... Qxb4 {[%clk 0:00:51.1]} 31. Rc7 {[%clk
0:00:30.6]} 31... Nc5 {[%clk 0:00:48.7]} 32. Rc2 {[%clk 0:00:25.7]} 32... Qxh4
{[%clk 0:00:39.7]} 33. Qc1 {[%clk 0:00:10.8]} 33... f4 {[%clk 0:00:35.7]} 34. f3
{[%clk 0:00:10.7]} 34... Qxg5 {[%clk 0:00:33.5]} 35. Nc3 {[%clk 0:00:11.2]}
35... Re7 {[%clk 0:00:29.5]} 36. Qf1 {[%clk 0:00:11]} 36... Qf5 {[%clk
0:00:25.7]} 37. Rd2 {[%clk 0:00:07.8]} 37... Rf8 {[%clk 0:00:20]} 38. Bh3 {[%clk
0:00:07]} 38... Qf7 {[%clk 0:00:18.7]} 39. Kh1 {[%clk 0:00:04.9]} 39... Nf6
{[%clk 0:00:18.4]} 40. Rxe7 {[%clk 0:00:04.8]} 40... Qxe7 {[%clk 0:00:19.3]} 41.
Qg1 {[%clk 0:00:05]} 41... Kh6 {[%clk 0:00:19.2]} 42. Rg2 {[%clk 0:00:04.3]}
42... Rg8 {[%clk 0:00:19.1]} 43. Qe1 {[%clk 0:00:02.2]} 43... g5 {[%clk
0:00:18.5]} 44. Qd2 {[%clk 0:00:01.6]} 44... g4 {[%clk 0:00:18.1]} 0-1

[Event "*** SCC Grand Prix: Titled Tuesday Blitz"]
[Site "Chess.com"]
[Date "2020.07.21"]
[Round "5"]
[White "GMHess"]
[Black "Witik"]
[Result "1-0"]
[WhiteElo "2781"]
[BlackElo "2600"]
[TimeControl "180+1"]
[EndTime "10:55:46 PDT"]
[Termination "GMHess won by resignation"]

1. d4 {[%clk 0:03:00.9]} 1... d5 {[%clk 0:02:58]} 2. c4 {[%clk 0:02:59]} 2... e6
{[%clk 0:02:58.2]} 3. Nc3 {[%clk 0:02:57.3]} 3... Nf6 {[%clk 0:02:53.9]} 4. Nf3
{[%clk 0:02:56.8]} 4... Bb4 {[%clk 0:02:50.6]} 5. g3 {[%clk 0:02:57.3]} 5...
dxc4 {[%clk 0:02:35.2]} 6. Bg2 {[%clk 0:02:56.8]} 6... Nc6 {[%clk 0:02:20.9]} 7.
O-O {[%clk 0:02:56]} 7... O-O {[%clk 0:02:18]} 8. Bg5 {[%clk 0:02:17.8]} 8... h6
{[%clk 0:02:00.7]} 9. Bxf6 {[%clk 0:02:16.7]} 9... Qxf6 {[%clk 0:02:01.6]} 10.
Qa4 {[%clk 0:01:58.1]} 10... Bd7 {[%clk 0:01:53.2]} 11. Ne5 {[%clk 0:01:36]}
11... Nxe5 {[%clk 0:01:32.7]} 12. Qxb4 {[%clk 0:01:34.8]} 12... Ng6 {[%clk
0:01:14]} 13. Qxb7 {[%clk 0:01:28]} 13... Rab8 {[%clk 0:01:07.9]} 14. Qxc7
{[%clk 0:01:21.8]} 14... Qd8 {[%clk 0:01:04.9]} 15. Qxc4 {[%clk 0:01:15.7]}
15... Rxb2 {[%clk 0:01:04]} 16. Rab1 {[%clk 0:01:10.9]} 16... Rxb1 {[%clk
0:01:00.6]} 17. Rxb1 {[%clk 0:01:11.8]} 17... Qa5 {[%clk 0:01:01.2]} 18. Qb4
{[%clk 0:00:59.3]} 18... Qc7 {[%clk 0:00:58.4]} 19. h4 {[%clk 0:00:52.4]} 19...
Rc8 {[%clk 0:00:55.4]} 20. Rb3 {[%clk 0:00:42.8]} 20... Bc6 {[%clk 0:00:51.9]}
21. d5 {[%clk 0:00:32.2]} 21... exd5 {[%clk 0:00:47.8]} 22. Nxd5 {[%clk
0:00:30.2]} 22... Qe5 {[%clk 0:00:27.3]} 23. Re3 {[%clk 0:00:15.8]} 23... Qa1+
{[%clk 0:00:26.7]} 24. Kh2 {[%clk 0:00:16.1]} 24... Qxa2 {[%clk 0:00:22.8]} 25.
Qd4 {[%clk 0:00:05.1]} 25... Bxd5 {[%clk 0:00:12.9]} 26. Bxd5 {[%clk 0:00:06]}
26... Qa5 {[%clk 0:00:07.3]} 27. h5 {[%clk 0:00:04.3]} 27... Nf8 {[%clk
0:00:06.6]} 28. Qe5 {[%clk 0:00:03.4]} 28... Qc7 {[%clk 0:00:05.6]} 29. Qxc7
{[%clk 0:00:03.2]} 29... Rxc7 {[%clk 0:00:06]} 30. Re8 {[%clk 0:00:03.4]} 30...
a5 {[%clk 0:00:02.3]} 31. Ra8 {[%clk 0:00:02.7]} 31... a4 {[%clk 0:00:02.9]} 32.
e4 {[%clk 0:00:02.8]} 32... a3 {[%clk 0:00:02.2]} 33. Kg2 {[%clk 0:00:02.9]}
33... a2 {[%clk 0:00:02.3]} 34. Bxa2 {[%clk 0:00:02.4]} 34... Re7 {[%clk
0:00:03.1]} 35. Bd5 {[%clk 0:00:02.8]} 35... Rd7 {[%clk 0:00:03.3]} 36. g4
{[%clk 0:00:03.3]} 36... Re7 {[%clk 0:00:03.5]} 37. Kg3 {[%clk 0:00:03.9]} 37...
Rd7 {[%clk 0:00:04]} 38. f4 {[%clk 0:00:04.5]} 38... Rc7 {[%clk 0:00:04.5]} 39.
f5 {[%clk 0:00:04.4]} 39... Rd7 {[%clk 0:00:05]} 40. Kf4 {[%clk 0:00:04.9]}
40... Rc7 {[%clk 0:00:05.4]} 41. g5 {[%clk 0:00:05.3]} 41... Rd7 {[%clk
0:00:05.9]} 42. g6 {[%clk 0:00:05.4]} 42... Rc7 {[%clk 0:00:04.9]} 43. gxf7+
{[%clk 0:00:05.6]} 43... Rxf7 {[%clk 0:00:05.5]} 44. Ra7 {[%clk 0:00:05.3]} 1-0

[Event "*** SCC Grand Prix: Titled Tuesday Blitz"]
[Site "Chess.com"]
[Date "2020.07.21"]
[Round "5"]
[White "RodinMihail"]
[Black "JuliaEfremova"]
[Result "1-0"]
[WhiteElo "2489"]
[BlackElo "2329"]
[TimeControl "180+1"]
[EndTime "10:55:46 PDT"]
[Termination "RodinMihail won by checkmate"]

1. e4 {[%clk 0:03:00.9]} 1... d5 {[%clk 0:02:59.4]} 2. exd5 {[%clk 0:02:58.3]}
2... Qxd5 {[%clk 0:03:00.3]} 3. Nc3 {[%clk 0:02:58.5]} 3... Qa5 {[%clk
0:02:59.7]} 4. d4 {[%clk 0:02:59]} 4... Nf6 {[%clk 0:02:59.7]} 5. Nf3 {[%clk
0:02:59.6]} 5... Bg4 {[%clk 0:02:59.3]} 6. h3 {[%clk 0:03:00.1]} 6... Bxf3
{[%clk 0:02:59.1]} 7. Qxf3 {[%clk 0:02:59]} 7... c6 {[%clk 0:03:00]} 8. Bd2
{[%clk 0:02:51.2]} 8... e6 {[%clk 0:02:55.9]} 9. Ne4 {[%clk 0:02:41.7]} 9... Qd8
{[%clk 0:02:50.7]} 10. Nxf6+ {[%clk 0:02:40.4]} 10... Qxf6 {[%clk 0:02:41.6]}
11. Qe4 {[%clk 0:02:40]} 11... Nd7 {[%clk 0:02:37.2]} 12. Bd3 {[%clk 0:02:36.3]}
12... Nb6 {[%clk 0:02:32.3]} 13. c4 {[%clk 0:02:30.8]} 13... O-O-O {[%clk
0:02:29.8]} 14. Be3 {[%clk 0:02:23.8]} 14... Bb4+ {[%clk 0:02:21.5]} 15. Ke2
{[%clk 0:02:23.4]} 15... Rhe8 {[%clk 0:02:14.7]} 16. f4 {[%clk 0:02:17.6]} 16...
g6 {[%clk 0:01:53.1]} 17. Rhd1 {[%clk 0:02:13.2]} 17... h5 {[%clk 0:01:50.5]}
18. Rac1 {[%clk 0:01:41.2]} 18... Na4 {[%clk 0:01:47.1]} 19. Rc2 {[%clk
0:01:38]} 19... Qe7 {[%clk 0:01:39.3]} 20. c5 {[%clk 0:01:31.2]} 20... Ba5
{[%clk 0:01:34.4]} 21. Rdc1 {[%clk 0:01:26.9]} 21... f5 {[%clk 0:01:24.3]} 22.
Qf3 {[%clk 0:01:25.1]} 22... Qd7 {[%clk 0:00:56.4]} 23. b3 {[%clk 0:01:21.1]}
23... Nc3+ {[%clk 0:00:56]} 24. Rxc3 {[%clk 0:01:21.2]} 24... Bxc3 {[%clk
0:00:53.6]} 25. Rxc3 {[%clk 0:01:22.1]} 25... a6 {[%clk 0:00:49.6]} 26. b4
{[%clk 0:01:17.9]} 26... Qd5 {[%clk 0:00:42.9]} 27. Bc4 {[%clk 0:01:15.5]} 27...
Qxf3+ {[%clk 0:00:39.2]} 28. Kxf3 {[%clk 0:01:16.4]} 28... Kd7 {[%clk
0:00:37.9]} 29. a4 {[%clk 0:01:13.9]} 29... Ra8 {[%clk 0:00:37]} 30. Bf2 {[%clk
0:01:12.3]} 30... a5 {[%clk 0:00:34.7]} 31. b5 {[%clk 0:01:11.9]} 31... Kc7
{[%clk 0:00:27.3]} 32. Bh4 {[%clk 0:01:06.8]} 32... cxb5 {[%clk 0:00:19.1]} 33.
Bxb5 {[%clk 0:01:06.3]} 33... Rg8 {[%clk 0:00:17.2]} 34. Bf6 {[%clk 0:01:05]}
34... b6 {[%clk 0:00:16.1]} 35. Be5+ {[%clk 0:01:00.8]} 35... Kb7 {[%clk
0:00:15.1]} 36. cxb6 {[%clk 0:00:56.5]} 36... Kxb6 {[%clk 0:00:15.1]} 37. Rc6+
{[%clk 0:00:56.2]} 37... Ka7 {[%clk 0:00:14.1]} 38. Rxe6 {[%clk 0:00:52]} 38...
Rac8 {[%clk 0:00:13.5]} 39. d5 {[%clk 0:00:50.5]} 39... Rc2 {[%clk 0:00:13.4]}
40. Bd4+ {[%clk 0:00:50.2]} 40... Kb7 {[%clk 0:00:12.9]} 41. Re7+ {[%clk
0:00:50.5]} 41... Kc8 {[%clk 0:00:12]} 42. d6 {[%clk 0:00:50.4]} 42... Rd2
{[%clk 0:00:09.8]} 43. Bb6 {[%clk 0:00:49]} 43... Rxd6 {[%clk 0:00:08.6]} 44.
Ba6+ {[%clk 0:00:40.5]} 44... Kb8 {[%clk 0:00:08.2]} 45. Bc7+ {[%clk 0:00:40.8]}
45... Ka7 {[%clk 0:00:07.4]} 46. Bxd6+ {[%clk 0:00:40]} 46... Kxa6 {[%clk
0:00:08.3]} 47. Bc5 {[%clk 0:00:38.7]} 47... Rc8 {[%clk 0:00:05.4]} 48. Ra7#
{[%clk 0:00:38.2]} 1-0